bitfinex/quotes_BTCUSD_20240729
["timestamp","ask_amount","ask_price","bid_price","bid_amount"]
[1722261803562,1.75601341,69074.0,69073.0,0.0656726]
[1722261803770,0.17873656,69074.0,69073.0,0.0656726]
[1722261803975,1.04569595,69074.0,69073.0,0.0656726]
[1722261804181,0.04688219,69074.0,69073.0,0.0656726]
[1722261804395,0.04688219,69080.0,69073.0,0.1156726]
[1722261804597,0.01151617,69095.0,69074.0,0.01176726]
[1722261804806,0.01151617,69084.0,69073.0,0.0656726]
[1722261805005,0.14309939,69091.0,69073.0,0.0656726]
[1722261805248,0.10959425,69111.0,69073.0,0.0656726]
[1722261805249,0.01151617,69094.0,69073.0,0.0656726]
[1722261805437,0.13184226,69093.0,69074.0,0.07154355]
[1722261805551,0.0601,69111.0,69081.0,0.05]
[1722261805552,0.01151617,69098.0,69081.0,0.05]
[1722261805749,0.01151617,69098.0,69075.0,0.01892162]
[1722261805750,0.01151617,69086.0,69075.0,0.01892162]
[1722261805956,0.01151617,69094.0,69085.0,0.50080486]
[1722261806177,0.0601,69111.0,69073.0,0.0656726]
[1722261806178,0.01151617,69092.0,69073.0,0.0656726]
[1722261806610,0.01151617,69090.0,69073.0,0.0656726]
[1722261806835,0.01151617,69092.0,69073.0,0.0656726]
[1722261807068,0.01151617,69088.0,69073.0,0.0656726]
[1722261807298,0.1,69100.0,69077.0,0.05]
[1722261807299,0.11151617,69100.0,69077.0,0.05]
[1722261807536,0.12031619,69099.0,69079.0,0.05]
[1722261807767,0.0627,69120.0,69080.0,0.07154355]
[1722261807768,0.01151617,69096.0,69080.0,0.07154355]
[1722261807991,0.01151617,69099.0,69081.0,0.01548436]
[1722261808219,0.01151617,69103.0,69087.0,0.0637]
[1722261808457,0.14309939,69112.0,69065.0,0.729]
[1722261808458,0.01151617,69076.0,69065.0,0.729]
[1722261808698,0.15628117,69077.0,69076.0,0.0015542]
[1722261808946,0.15628117,69077.0,69060.0,0.0001]
[1722261808947,0.44583217,69074.0,69060.0,0.0001]
[1722261809186,1.36446417,69074.0,69060.0,0.0001]
[1722261809394,1.14001208,69074.0,69060.0,0.0001]
[1722261809618,0.73009869,69074.0,69060.0,0.0001]
[1722261809834,0.21838071,69074.0,69060.0,0.0001]
[1722261810040,1.44908402,69074.0,69073.0,0.01879041]
[1722261810271,1.72636894,69074.0,69073.0,1.21e-06]
[1722261810480,2.30545694,69074.0,69073.0,1.21e-06]
[1722261810675,2.15498305,69074.0,69073.0,1.21e-06]
[1722261810877,2.40546426,69074.0,69073.0,1.21e-06]
[1722261811083,2.42846426,69074.0,69073.0,1.21e-06]
[1722261811295,2.42847495,69074.0,69073.0,1.21e-06]
[1722261811509,1.07511217,69061.0,69060.0,0.0001]
[1722261811712,1.48436742,69061.0,69060.0,0.0001]
[1722261811915,1.83466643,69061.0,69060.0,0.0001]
[1722261812122,0.78229905,69058.0,69057.0,0.00075227]
[1722261812322,0.78229905,69058.0,69050.0,0.0007]
[1722261812323,0.20309205,69051.0,69050.0,0.0007]
[1722261812533,1.73258213,69051.0,69050.0,0.0007]
[1722261812751,2.04522213,69051.0,69050.0,0.0007]
[1722261812974,1.85558213,69051.0,69050.0,0.0007]
[1722261813182,1.99868152,69051.0,69050.0,0.00066]
[1722261813440,1.56141819,69051.0,69050.0,0.00066]
[1722261813768,1.89868397,69051.0,69050.0,0.00066]
[1722261813985,1.89868397,69051.0,69021.0,0.50264414]
[1722261813986,1.03809905,69041.0,69021.0,0.5]
[1722261814184,1.79296318,69041.0,69021.0,0.5]
[1722261814389,1.02495019,69031.0,69021.0,0.5]
[1722261814856,1.12495019,69031.0,69021.0,0.5]
[1722261815070,1.12495019,69031.0,69022.0,0.03670414]
[1722261815071,0.97790506,69031.0,69022.0,0.03670414]
[1722261815277,1.30392492,69031.0,69021.0,0.5]
[1722261815485,1.59364892,69031.0,69021.0,0.5]
[1722261816114,1.55735306,69031.0,69021.0,0.5]
[1722261816526,1.58035306,69031.0,69021.0,0.5]
[1722261816756,1.26762906,69031.0,69021.0,0.5]
[1722261817187,1.29036687,69031.0,69021.0,0.5]
[1722261817598,1.29036687,69031.0,69024.0,0.03670414]
[1722261817801,1.29036687,69031.0,69030.0,0.55]
[1722261817802,0.61091887,69031.0,69030.0,0.55]
[1722261818007,0.01049567,69031.0,69030.0,0.53670414]
[1722261818380,0.144851,69036.0,69035.0,0.03670414]
[1722261818580,0.15359506,69036.0,69035.0,0.03670414]
[1722261818980,0.58814906,69036.0,69035.0,0.03670414]
[1722261819181,0.58814906,69036.0,69030.0,0.5]
[1722261819182,0.44508167,69031.0,69030.0,0.53670414]
[1722261819435,0.73480567,69031.0,69030.0,0.53670414]
[1722261819638,0.87790506,69031.0,69030.0,0.53670414]
[1722261819839,0.44508167,69031.0,69030.0,0.53670414]
[1722261820047,0.01049567,69036.0,69035.0,0.03670414]
[1722261820250,0.01049567,69032.0,69031.0,0.0015542]
[1722261820428,0.44508167,69031.0,69030.0,0.53670414]
[1722261820690,1.16262906,69031.0,69030.0,0.5]
[1722261821090,1.45235306,69031.0,69030.0,0.5]
[1722261821426,1.47508978,69031.0,69030.0,0.5]
[1722261821630,1.57508978,69031.0,69030.0,0.5]
[1722261821834,1.28536578,69031.0,69030.0,0.5]
[1722261822490,1.26262906,69031.0,69030.0,0.5]
[1722261822667,0.86240939,69031.0,69030.0,0.53670414]
[1722261822927,0.87290506,69031.0,69030.0,0.53670414]
[1722261823131,1.16262906,69031.0,69030.0,0.5]
[1722261823334,1.84207706,69031.0,69030.0,0.5]
[1722261823544,1.99397706,69031.0,69030.0,0.5]
[1722261823748,1.70425306,69031.0,69030.0,0.5]
[1722261823937,1.70425306,69031.0,69030.0,0.22771834]
[1722261823938,2.09397706,69031.0,69030.0,0.22771834]
[1722261824183,1.70425306,69031.0,69030.0,0.22771834]
[1722261824355,2.44310486,69031.0,69030.0,0.22771834]
[1722261824729,2.58655493,69031.0,69030.0,0.22771834]
[1722261824975,2.58655493,69031.0,69030.0,0.14079934]
[1722261825158,1.95605253,69022.0,69021.0,0.5]
[1722261825278,2.51664957,69022.0,69021.0,0.5]
[1722261825479,2.55265027,69022.0,69021.0,0.5]
[1722261825731,2.7089615,69022.0,69021.0,0.5]
[1722261826043,2.85218571,69022.0,69021.0,0.5]
[1722261826259,2.76551571,69022.0,69021.0,0.5]
[1722261826454,2.80151641,69022.0,69021.0,0.471023]
[1722261826702,3.52846443,69022.0,69021.0,0.355115]
[1722261826882,2.41429643,69022.0,69021.0,0.355115]
[1722261827096,2.36245785,69022.0,69021.0,0.355115]
[1722261827516,2.36245785,69022.0,68986.0,0.42926131]
[1722261827517,0.02062157,68995.0,68986.0,0.42926131]
[1722261827660,0.44528178,68987.0,68986.0,0.42926131]
[1722261827913,0.15539878,68975.0,68974.0,0.02937843]
[1722261828083,0.56881443,68987.0,68974.0,0.02937843]
[1722261828084,0.244954,68987.0,68986.0,0.02937843]
[1722261828290,0.04942521,69007.0,68994.0,0.02937843]
[1722261828291,0.01041878,68996.0,68994.0,0.02937843]
[1722261828454,0.01041878,68996.0,68975.0,0.07154355]
[1722261828455,0.04942521,69019.0,68999.0,0.02937843]
[1722261828650,0.01041878,69002.0,68999.0,0.02937843]
[1722261828849,0.30022478,69012.0,69002.0,0.02937843]
[1722261829049,0.30022478,69012.0,69002.0,0.10547843]
[1722261829050,0.01041878,69012.0,69002.0,0.10547843]
[1722261829278,0.144899,69014.0,69002.0,0.11602627]
[1722261829526,0.01041878,69010.0,69002.0,0.11602627]
[1722261829848,0.01041878,69008.0,69002.0,0.11602627]
[1722261830055,0.01041878,69008.0,69002.0,0.10547843]
[1722261830523,0.17331126,69003.0,69002.0,0.10547843]
[1722261830757,0.15530378,69020.0,69019.0,0.02937843]
[1722261830994,0.85917311,69020.0,69019.0,0.02937843]
[1722261831237,1.14894411,69020.0,69019.0,0.02937843]
[1722261831483,1.17168156,69020.0,69019.0,0.02937843]
[1722261831770,0.76146406,69020.0,69019.0,0.02937843]
[1722261832016,1.17168577,69020.0,69019.0,0.02937843]
[1722261832267,0.01041878,69015.0,69014.0,0.02937843]
[1722261832518,0.56941732,69015.0,69014.0,0.02937843]
[1722261832729,0.85920932,69015.0,69014.0,0.02937843]
[1722261832935,1.14900132,69015.0,69014.0,0.02937843]
[1722261833133,0.73495078,69010.0,69009.0,0.02937843]
[1722261833338,1.14905332,69010.0,69009.0,0.02937843]
[1722261834276,0.85924032,69010.0,69009.0,0.02937843]
[1722261834618,0.71433432,69010.0,69007.0,0.02937843]
[1722261834822,0.1,69015.0,69007.0,0.02937843]
[1722261834823,0.44514978,69008.0,69007.0,0.02937843]
[1722261835075,0.85926167,69008.0,69007.0,0.03992627]
[1722261835274,0.85926167,69008.0,69007.0,0.02937843]
[1722261835627,0.29375387,69008.0,69007.0,0.02937843]
[1722261836152,0.43866387,69008.0,69007.0,0.02937843]
[1722261836352,0.2710125,69008.0,69007.0,0.02937843]
[1722261837632,0.4968431,69008.0,69007.0,0.02937843]
[1722261837822,0.49682535,69008.0,69007.0,0.02937843]
[1722261838025,0.49682535,69008.0,69007.0,0.14357843]
[1722261838375,0.37638304,69008.0,69007.0,0.09357843]
[1722261838577,0.49682165,69008.0,69007.0,0.13003817]
[1722261838724,0.49682165,69008.0,69007.0,0.09357843]
[1722261839093,0.54628066,69008.0,69007.0,0.09357843]
[1722261839289,0.56901945,69008.0,69007.0,0.09357843]
[1722261839739,0.69125994,69008.0,69007.0,0.09357843]
[1722261839940,0.91418069,69008.0,69007.0,0.09357843]
[1722261840150,0.75885191,69008.0,69007.0,0.09357843]
[1722261840342,0.75885191,69008.0,69007.0,0.11054627]
[1722261840520,0.78159046,69008.0,69007.0,0.11054627]
[1722261840716,0.83669054,69008.0,69007.0,0.11054627]
[1722261840916,0.93744374,69008.0,69007.0,0.09357843]
[1722261841118,0.79253374,69008.0,69007.0,0.09357843]
[1722261841366,0.78211496,69008.0,69007.0,0.09357843]
[1722261841575,1.07193596,69008.0,69007.0,0.09357843]
[1722261841724,0.78211496,69008.0,69007.0,0.09357843]
[1722261841946,0.78211496,69008.0,69007.0,0.11054627]
[1722261842147,0.78211496,69008.0,69007.0,0.09357843]
[1722261842355,0.79253374,69008.0,69007.0,0.09357843]
[1722261842544,0.78211496,69008.0,69007.0,0.09357843]
[1722261842941,0.78254522,69008.0,69007.0,0.14357843]
[1722261843161,0.78254522,69008.0,69007.0,0.09357843]
[1722261843358,0.78254522,69008.0,69007.0,0.11054627]
[1722261844995,0.78254522,69008.0,69007.0,0.16254627]
[1722261845289,0.78254522,69008.0,69007.0,0.16054627]
[1722261845502,0.78254522,69008.0,69007.0,0.11054627]
[1722261845702,0.78254522,69008.0,69007.0,0.28849043]
[1722261845812,1.22739597,69008.0,69007.0,0.02937843]
[1722261846052,0.79265494,69008.0,69007.0,0.02937843]
[1722261846284,0.8493525,69008.0,69007.0,0.02937843]
[1722261846492,0.7687363,69008.0,69007.0,0.02937843]
[1722261846686,1.58362588,69008.0,69007.0,0.02937843]
[1722261846960,0.85907388,69008.0,69007.0,0.02937843]
[1722261847146,0.78153876,69008.0,69007.0,0.02937843]
[1722261847347,1.0040346,69008.0,69007.0,0.02937843]
[1722261847557,1.72677599,69008.0,69007.0,0.02937843]
[1722261847761,1.72677599,69008.0,68994.0,0.3675]
[1722261847762,0.01041878,68999.0,68994.0,0.3675]
[1722261847996,0.144935,68996.0,68995.0,0.05250582]
[1722261848207,0.80656491,68996.0,68995.0,0.05101]
[1722261848459,0.53296961,68996.0,68994.0,0.3675]
[1722261848699,0.15055244,68995.0,68994.0,0.3675]
[1722261848930,0.42374677,68995.0,68994.0,0.80962061]
[1722261849128,0.20441835,68995.0,68994.0,1.28242703]
[1722261849328,0.12046591,68995.0,68994.0,1.57430703]
[1722261850301,0.04945063,69007.0,69003.0,0.05]
[1722261850518,0.42926131,69038.0,69032.0,0.078]
[1722261850735,0.04948349,69036.0,69032.0,0.128]
[1722261850889,0.04948349,69045.0,69039.0,0.05]
[1722261851144,0.04948349,69046.0,69044.0,0.05]
[1722261851347,0.00817,69048.0,69047.0,0.05]
[1722261851478,0.00817,69048.0,69047.0,0.26159939]
[1722261851688,0.00817,69048.0,69047.0,0.75316885]
[1722261851895,0.00817,69048.0,69047.0,0.20798446]
[1722261852098,0.00817,69048.0,69047.0,0.1489]
[1722261853231,0.152996,69048.0,69047.0,0.1489]
[1722261853440,0.00817,69048.0,69047.0,0.1489]
[1722261853889,0.00817,69048.0,69047.0,0.923042]
[1722261854135,0.00817,69048.0,69047.0,1.39737961]
[1722261854345,0.0015,69070.0,69060.0,0.05]
[1722261854601,0.0015,69070.0,69066.0,0.05]
[1722261854820,0.0015,69070.0,69068.0,0.0814]
[1722261854982,0.0015,69070.0,69069.0,0.04060429]
[1722261855865,0.0015,69070.0,69069.0,0.23370368]
[1722261855988,0.0015,69070.0,69069.0,0.38138097]
[1722261856187,0.0015,69070.0,69069.0,0.9971969]
[1722261856417,0.01041878,69099.0,69081.0,0.05]
[1722261856618,0.43968009,69097.0,69082.0,0.51059939]
[1722261856838,0.14475,69085.0,69082.0,0.3675]
[1722261857038,0.01041878,69081.0,69075.0,0.0015542]
[1722261857244,0.01041878,69081.0,69071.0,0.729]
[1722261857245,0.44471478,69077.0,69076.0,0.07305542]
[1722261857672,0.01041878,69079.0,69076.0,0.07305542]
[1722261857877,0.01041878,69083.0,69077.0,0.0015542]
[1722261858021,0.01041878,69099.0,69083.0,0.289506]
[1722261858419,0.01041878,69094.0,69085.0,0.07154355]
[1722261858622,0.01041878,69099.0,69093.0,0.07154355]
[1722261858828,0.01041878,69101.0,69093.0,0.07154355]
[1722261859035,0.01041878,69105.0,69100.0,0.07154355]
[1722261859316,0.01041878,69108.0,69101.0,0.0615]
[1722261859551,0.15510578,69115.0,69109.0,0.07154355]
[1722261859824,0.01041878,69115.0,69109.0,0.07154355]
[1722261860096,0.01041878,69128.0,69110.0,0.580082]
[1722261860347,0.42926131,69149.0,69110.0,0.14309939]
[1722261860348,0.01041878,69125.0,69110.0,0.14309939]
[1722261860643,0.144681,69118.0,69110.0,0.14309939]
[1722261861098,0.289358,69119.0,69110.0,0.14309939]
[1722261861331,0.01041878,69123.0,69110.0,0.35933894]
[1722261861558,0.01041878,69123.0,69110.0,0.40423096]
[1722261861794,0.01041878,69123.0,69110.0,0.69362396]
[1722261862032,0.144664,69126.0,69110.0,0.40423096]
[1722261862398,0.289257,69143.0,69110.0,0.78320518]
[1722261862399,0.01041878,69127.0,69110.0,0.78320518]
[1722261862642,0.29974278,69127.0,69110.0,0.18799141]
[1722261862860,0.01191878,69111.0,69092.0,0.1467]
[1722261863068,0.01041878,69099.0,69092.0,0.1467]
[1722261863317,0.0015,69111.0,69092.0,0.1467]
[1722261863318,0.144732,69093.0,69092.0,0.1467]
[1722261863559,0.434196,69093.0,69092.0,0.157119]
[1722261863801,0.144732,69093.0,69092.0,0.1467]
[1722261864040,0.01041878,69093.0,69084.0,0.0649]
[1722261864319,0.01041878,69087.0,69082.0,0.058005]
[1722261864588,0.01041878,69089.0,69083.0,0.02829044]
[1722261864858,0.01041878,69092.0,69083.0,0.17138983]
[1722261865120,0.01041878,69096.0,69084.0,0.14309939]
[1722261865351,0.01041878,69096.0,69084.0,0.16841837]
[1722261865594,0.01041878,69096.0,69085.0,0.289498]
[1722261865861,0.01041878,69096.0,69086.0,0.14309939]
[1722261866141,0.01041878,69099.0,69087.0,0.00289451]
[1722261866381,0.01041878,69101.0,69088.0,0.25096774]
[1722261866610,0.144705,69106.0,69094.0,0.05]
[1722261866842,0.01041878,69107.0,69096.0,0.07154355]
[1722261867063,0.01041878,69107.0,69097.0,0.16456368]
[1722261867346,0.01041878,69109.0,69097.0,0.19309939]
[1722261867579,0.00816,69114.0,69099.0,0.05]
[1722261867804,0.289388,69112.0,69100.0,0.21687661]
[1722261868042,0.578946,69091.0,69081.0,0.0758]
[1722261868277,0.01041878,69092.0,69081.0,0.0758]
[1722261868511,0.01041878,69096.0,69081.0,0.0758]
[1722261868737,0.01041878,69094.0,69089.0,0.04446873]
[1722261869177,0.01041878,69098.0,69089.0,0.04446873]
[1722261869391,0.144712,69103.0,69090.0,0.14309939]
[1722261869617,0.01041878,69101.0,69091.0,0.01875681]
[1722261869854,0.00084,69096.0,69091.0,0.01875681]
[1722261870078,0.00084,69096.0,69089.0,0.04446873]
[1722261870316,0.01041878,69091.0,69089.0,0.04446873]
[1722261870775,0.01041878,69091.0,69077.0,0.289531]
[1722261870776,0.15518378,69077.0,69076.0,0.0015542]
[1722261871001,0.44475978,69070.0,69069.0,0.000924]
[1722261871232,0.73432078,69070.0,69069.0,0.000924]
[1722261871456,1.02388178,69070.0,69069.0,0.000924]
[1722261871683,0.73432078,69070.0,69069.0,0.000924]
[1722261871928,1.22708117,69070.0,69069.0,0.000924]
[1722261872409,1.56664217,69070.0,69069.0,0.000924]
[1722261872625,1.71664217,69070.0,69069.0,0.000924]
[1722261872826,2.30857301,69070.0,69069.0,0.000924]
[1722261873236,2.30857301,69070.0,69032.0,0.138947]
[1722261873237,1.014006,69033.0,69032.0,0.058047]
[1722261873451,0.44501178,69030.0,69029.0,0.42926131]
[1722261873734,0.05,69042.0,69009.0,0.0809]
[1722261873735,0.01041878,69020.0,69009.0,0.0809]
[1722261873936,0.30018978,69020.0,69009.0,0.8104]
[1722261874063,0.289776,69019.0,69009.0,0.4429]
[1722261874266,0.144892,69017.0,69010.0,0.04429]
[1722261874470,0.289776,69019.0,69010.0,0.04429]
[1722261874667,0.01041878,69018.0,69010.0,0.04429]
[1722261874866,0.01041878,69019.0,69010.0,0.04429]
[1722261875092,0.434719,69010.0,69009.0,0.362]
[1722261875290,0.73495078,69010.0,69009.0,0.362]
[1722261875606,0.44513778,69010.0,69009.0,0.362]
[1722261875830,0.59004478,69010.0,69002.0,0.065]
[1722261875983,0.05,69033.0,68999.0,0.0105192]
[1722261875984,0.01041878,69008.0,68999.0,0.0105192]
[1722261876191,0.01041878,69013.0,69005.0,0.07154355]
[1722261876387,0.01041878,69014.0,69005.0,0.07154355]
[1722261876589,0.01041878,69022.0,69012.0,0.07154355]
[1722261876805,0.2897,69037.0,69021.0,0.0015542]
[1722261876806,0.01041878,69030.0,69021.0,0.0015542]
[1722261876982,0.289716,69033.0,69021.0,0.0015542]
[1722261876983,0.01041878,69033.0,69029.0,0.07154355]
[1722261877179,0.01041878,69037.0,69022.0,0.01550978]
[1722261877383,0.01041878,69034.0,69027.0,0.07154355]
[1722261877621,0.42926131,69045.0,69027.0,0.07154355]
[1722261877622,0.01041878,69036.0,69027.0,0.07154355]
[1722261877822,0.01041878,69032.0,69022.0,0.01550978]
[1722261878025,0.0606,69046.0,69022.0,0.01550978]
[1722261878026,0.01041878,69031.0,69022.0,0.0015542]
[1722261878275,0.0227319,69034.0,69024.0,0.05]
[1722261878448,0.289686,69041.0,69023.0,0.14309939]
[1722261878449,0.01041878,69037.0,69028.0,0.07154355]
[1722261878690,0.144843,69041.0,69029.0,0.0015542]
[1722261878893,0.01041878,69043.0,69037.0,0.07154355]
[1722261879092,0.01041878,69044.0,69037.0,0.07154355]
[1722261879506,0.01041878,69049.0,69037.0,0.07154355]
[1722261879726,0.01041878,69043.0,69039.0,0.0015542]
[1722261879922,0.01041878,69044.0,69039.0,0.0015542]
[1722261880134,0.289652,69049.0,69039.0,0.0015542]
[1722261880135,0.01041878,69040.0,69039.0,0.0015542]
[1722261880339,0.0636,69061.0,69030.0,0.00730978]
[1722261880340,0.01041878,69034.0,69030.0,0.00730978]
[1722261880512,0.01041878,69034.0,69021.0,0.07154355]
[1722261880513,0.01041878,69034.0,69023.0,0.0015542]
[1722261880742,0.289745,69026.0,69025.0,0.0015542]
[1722261880943,0.87788017,69026.0,69025.0,0.0015542]
[1722261881075,0.87788017,69026.0,69025.0,0.07465962]
[1722261881275,0.73478078,69026.0,69025.0,0.0015542]
[1722261881500,0.44505578,69023.0,69022.0,0.7295]
[1722261881726,0.73481378,69023.0,69022.0,0.7295]
[1722261881924,1.16767117,69023.0,69022.0,0.7295]
[1722261882332,0.87791317,69023.0,69022.0,0.7295]
[1722261882532,0.87791317,69023.0,69022.0,0.07295]
[1722261882756,0.87791317,69023.0,69001.0,0.05]
[1722261882757,0.15532278,69011.0,69001.0,0.05]
[1722261882952,0.01041878,69016.0,69002.0,1.02075569]
[1722261883171,0.0643,69032.0,69003.0,0.0015542]
[1722261883172,0.144904,69011.0,69003.0,0.0015542]
[1722261883391,0.15532278,69011.0,69002.0,0.7295]
[1722261883537,0.44513078,69011.0,69003.0,0.0015542]
[1722261883741,0.15532278,69011.0,69003.0,0.0015542]
[1722261883961,0.01041878,69012.0,69003.0,0.0015542]
[1722261884223,0.289744,69027.0,69003.0,0.0015542]
[1722261884224,0.01041878,69018.0,69007.0,0.05]
[1722261884409,0.01041878,69013.0,69011.0,0.0195414]
[1722261884582,0.01041878,69016.0,69004.0,0.0015542]
[1722261884915,0.15531278,69016.0,69004.0,0.0015542]
[1722261885066,0.01041878,69016.0,69003.0,0.07154355]
[1722261885274,0.289756,69024.0,69002.0,0.7295]
[1722261885275,0.72452,69011.0,69002.0,0.7295]
[1722261885479,0.73493878,69011.0,69003.0,0.42926131]
[1722261885685,0.01041878,69013.0,69004.0,0.0015542]
[1722261885880,0.01041878,69013.0,69003.0,0.07154355]
[1722261885881,0.01041878,69018.0,69011.0,0.0015542]
[1722261886279,0.01041878,69015.0,69012.0,0.01432542]
[1722261886689,0.01041878,69017.0,69012.0,0.01432542]
[1722261886892,0.73493878,69011.0,69008.0,0.00108352]
[1722261887105,1.02474678,69011.0,69002.0,0.7295]
[1722261887277,1.30654617,69011.0,69002.0,0.7295]
[1722261888245,0.73493878,69011.0,69002.0,0.7295]
[1722261888453,1.45765417,69011.0,69002.0,0.7295]
[1722261888635,1.50765417,69011.0,69002.0,0.7295]
[1722261888871,1.50765417,69011.0,68999.0,0.008965]
[1722261888872,1.02491078,69000.0,68999.0,0.008965]
[1722261889076,1.16801017,69000.0,68999.0,0.008965]
[1722261889363,0.87815517,69000.0,68999.0,0.008965]
[1722261889656,0.58830017,69000.0,68999.0,0.008965]
[1722261889817,0.87815517,69000.0,68999.0,0.008965]
[1722261889995,0.15534578,69000.0,68999.0,0.008965]
[1722261890192,0.01041878,69001.0,68999.0,0.008965]
[1722261890417,0.01041878,69000.0,68999.0,0.008965]
[1722261890621,0.01041878,69009.0,68999.0,0.008965]
[1722261890939,0.144918,69005.0,68999.0,0.008965]
[1722261891143,0.01041878,69012.0,68999.0,0.008965]
[1722261891295,0.01041878,69012.0,69001.0,0.0015542]
[1722261891501,0.0637,69030.0,69007.0,0.05]
[1722261891502,0.01041878,69019.0,69007.0,0.05]
[1722261891687,0.01041878,69018.0,69008.0,0.0015542]
[1722261891887,0.1137,69030.0,69002.0,0.03474186]
[1722261891888,0.01041878,69015.0,69003.0,0.05]
[1722261892190,0.01041878,69016.0,69004.0,0.00937069]
[1722261892364,0.289772,69020.0,69004.0,0.00937069]
[1722261892365,0.01041878,69013.0,69004.0,0.00937069]
[1722261892650,0.01041878,69015.0,69004.0,0.00937069]
[1722261892768,0.289772,69020.0,69004.0,0.00937069]
[1722261892769,0.01041878,69021.0,69015.0,0.05]
[1722261892953,0.01041878,69030.0,69019.0,0.05]
[1722261893158,0.01041878,69029.0,69020.0,0.14309939]
[1722261893438,0.367579,69042.0,69020.0,0.14309939]
[1722261893439,0.01041878,69030.0,69021.0,0.04950268]
[1722261893644,0.02273417,69028.0,69025.0,0.144873]
[1722261893769,0.02273417,69028.0,69026.0,0.0144873]
[1722261893972,0.01041878,69027.0,69017.0,0.289782]
[1722261894238,0.02273417,69028.0,69017.0,0.05]
[1722261894414,0.02273417,69028.0,69027.0,0.14487]
[1722261894637,0.02273417,69028.0,69018.0,0.0015542]
[1722261894830,0.01041878,69031.0,69019.0,0.289775]
[1722261895031,0.01041878,69031.0,69020.0,0.0015542]
[1722261895238,0.144859,69033.0,69020.0,0.0015542]
[1722261895239,0.01041878,69033.0,69029.0,0.07154355]
[1722261895441,0.01041878,69043.0,69034.0,0.289711]
[1722261895594,0.01041878,69036.0,69035.0,0.03068072]
[1722261895794,0.01041878,69036.0,69035.0,0.0015542]
[1722261896007,0.01041878,69040.0,69035.0,0.0015542]
[1722261896229,0.01041878,69040.0,69035.0,0.1454542]
[1722261896506,0.01041878,69047.0,69036.0,0.01454542]
[1722261896673,0.01041878,69047.0,69037.0,0.0015542]
[1722261896917,0.01041878,69051.0,69040.0,0.289686]
[1722261897046,0.01041878,69051.0,69041.0,0.18197276]
[1722261897270,0.01041878,69052.0,69041.0,0.03713276]
[1722261897482,0.14309939,69057.0,69041.0,0.0015542]
[1722261897483,0.144839,69042.0,69041.0,0.0015542]
[1722261897703,0.144839,69042.0,69036.0,0.01454542]
[1722261897704,0.01041878,69041.0,69037.0,0.0015542]
[1722261897904,0.14309939,69050.0,69037.0,0.0015542]
[1722261898107,0.02272703,69042.0,69038.0,0.03835996]
[1722261898317,0.02272703,69042.0,69039.0,0.0015542]
[1722261898645,0.01041878,69047.0,69039.0,0.0015542]
[1722261898878,0.1519,69066.0,69039.0,0.0015542]
[1722261898879,0.43968009,69051.0,69043.0,0.144836]
[1722261899041,0.01041878,69040.0,69039.0,0.0015542]
[1722261899251,0.15525278,69045.0,69036.0,0.0015542]
[1722261899404,0.01041878,69045.0,69036.0,0.0015542]
[1722261899604,0.14483,69047.0,69036.0,0.0015542]
[1722261899804,0.01041878,69047.0,69036.0,0.0015542]
[1722261900004,0.01041878,69047.0,69037.0,0.07087702]
[1722261900226,0.15046637,69046.0,69038.0,0.0015542]
[1722261900630,0.15046637,69046.0,69035.0,0.0015542]
[1722261900832,0.15046637,69046.0,69033.0,0.289715]
[1722261900833,0.15046637,69046.0,69034.0,0.05]
[1722261901042,0.15046637,69045.0,69035.0,0.0631436]
[1722261901214,0.1519,69066.0,69035.0,0.0631436]
[1722261901215,0.01041878,69051.0,69039.0,0.05]
[1722261901434,0.01041878,69051.0,69037.0,0.0015542]
[1722261901435,0.15045801,69050.0,69046.0,0.05]
[1722261901635,0.01041878,69055.0,69047.0,0.01928]
[1722261901836,0.01041878,69053.0,69047.0,0.01928]
[1722261902061,0.01041878,69051.0,69047.0,0.01928]
[1722261902277,0.15045269,69050.0,69049.0,0.0015542]
[1722261902480,0.01041878,69057.0,69049.0,0.0015542]
[1722261902690,0.42926131,69070.0,69055.0,0.0015542]
[1722261902893,0.42926131,69070.0,69047.0,0.0015542]
[1722261902894,0.01041878,69054.0,69047.0,0.0015542]
[1722261903313,0.01041878,69058.0,69048.0,0.05]
[1722261903526,0.01041878,69059.0,69050.0,0.289643]
[1722261903742,0.15043366,69058.0,69055.0,0.289624]
[1722261904006,0.01041878,69068.0,69058.0,0.289611]
[1722261904206,0.144777,69072.0,69059.0,0.0015542]
[1722261904207,0.01041878,69072.0,69059.0,0.0015542]
[1722261904402,0.15040796,69071.0,69059.0,0.0015542]
[1722261904613,0.15040796,69071.0,69063.0,0.0015542]
[1722261904816,0.01041878,69078.0,69066.0,0.1444]
[1722261905022,0.13384,69092.0,69073.0,0.144773]
[1722261905023,0.15040563,69077.0,69073.0,0.144773]
[1722261905235,0.13384,69092.0,69073.0,0.05]
[1722261905236,0.01041878,69076.0,69073.0,0.05]
[1722261905377,0.01041878,69080.0,69068.0,0.0015542]
[1722261905580,0.01041878,69070.0,69069.0,0.03085189]
[1722261905784,0.01041878,69068.0,69067.0,0.0015542]
[1722261905984,0.02271794,69070.0,69067.0,0.0015542]
[1722261906450,0.00084,69068.0,69067.0,0.0015542]
[1722261906648,0.00084,69068.0,69067.0,0.00953962]
[1722261907014,0.00084,69068.0,69067.0,0.15432562]
[1722261907231,0.00084,69068.0,69067.0,0.92501681]
[1722261907399,0.00084,69068.0,69067.0,0.29587081]
[1722261907603,0.00084,69068.0,69067.0,0.15108481]
[1722261907830,0.15435817,69068.0,69067.0,0.0015542]
[1722261908031,0.15435817,69068.0,69040.0,0.47926131]
[1722261908032,0.30479592,69068.0,69040.0,0.47926131]
[1722261908255,0.01041878,69054.0,69044.0,0.05]
[1722261908454,0.01041878,69064.0,69048.0,0.07154355]
[1722261908653,0.00084,69068.0,69048.0,0.07154355]
[1722261908654,0.01041878,69062.0,69058.0,0.144805]
[1722261908854,0.01041878,69062.0,69058.0,0.0015542]
[1722261909110,0.01125878,69068.0,69059.0,0.1417]
[1722261909270,0.01125878,69068.0,69060.0,0.01432542]
[1722261909469,0.01041878,69053.0,69036.0,0.0015542]
[1722261909668,0.01041878,69044.0,69036.0,0.0015542]
[1722261910134,0.289662,69046.0,69036.0,0.0015542]
[1722261910135,0.01041878,69046.0,69036.0,0.0015542]
[1722261910286,0.01041878,69050.0,69037.0,0.14309939]
[1722261910489,0.01041878,69039.0,69038.0,0.03018956]
[1722261910691,0.01041878,69040.0,69038.0,0.03018956]
[1722261910898,0.289664,69046.0,69038.0,0.03018956]
[1722261910899,0.01041878,69039.0,69038.0,0.03018956]
[1722261911104,0.01041878,69040.0,69038.0,0.03018956]
[1722261911307,0.01041878,69046.0,69039.0,0.01718896]